bitfinex/quotes_BTCUSD_20220303
["timestamp","ask_amount","ask_price","bid_price","bid_amount"]
[1646324199902,0.058853,42499.0,42495.0,0.48821985]
[1646324200104,0.058853,42499.0,42498.0,0.02724706]
[1646324200303,0.058853,42499.0,42498.0,0.37054385]
[1646324200504,0.058853,42499.0,42498.0,0.05327541]
[1646324200705,0.058853,42499.0,42498.0,0.05271066]
[1646324201703,0.058853,42499.0,42498.0,0.55271066]
[1646324202106,0.058853,42499.0,42498.0,0.65271066]
[1646324202941,0.058853,42499.0,42498.0,0.95271066]
[1646324203143,0.058853,42499.0,42498.0,0.65271066]
[1646324203448,0.058853,42499.0,42498.0,0.95271066]
[1646324204045,0.058853,42499.0,42498.0,1.66041066]
[1646324204843,0.03953684,42499.0,42498.0,1.66041066]
[1646324205043,0.03953684,42499.0,42498.0,1.651]
[1646324205244,0.117682,42503.0,42498.0,1.66040966]
[1646324205445,0.058835,42504.0,42503.0,0.87242612]
[1646324205645,0.058835,42504.0,42503.0,1.17683589]
[1646324205845,0.058835,42504.0,42503.0,1.22013578]
[1646324206045,0.058835,42504.0,42503.0,1.01243534]
[1646324206444,0.058835,42504.0,42503.0,1.00743534]
[1646324206901,0.058835,42504.0,42503.0,1.71513534]
[1646324207703,0.117676,42508.0,42503.0,1.71513534]
[1646324207704,0.058831,42508.0,42503.0,1.52513534]
[1646324207904,0.537667,42511.0,42503.0,1.52513534]
[1646324207905,0.42,42511.0,42507.0,0.29940922]
[1646324208202,0.42,42512.0,42510.0,0.71710922]
[1646324208403,0.42,42512.0,42511.0,0.36268299]
[1646324208604,0.001,42516.0,42511.0,0.3433]
[1646324208806,0.001,42516.0,42515.0,0.12940803]
[1646324209005,16.92692302,42525.0,42515.0,0.12940803]
[1646324209006,16.3569651,42525.0,42516.0,0.02347]
[1646324209206,16.3569651,42525.0,42520.0,0.02347]
[1646324209207,14.3577651,42525.0,42520.0,0.02347]
[1646324209408,14.3577651,42525.0,42517.0,1.30880845]
[1646324209409,13.3580651,42525.0,42524.0,1.02725908]
[1646324209604,11.3591651,42525.0,42524.0,0.4523053]
[1646324209807,11.3591651,42525.0,42524.0,0.0433]
[1646324210003,11.3591651,42525.0,42517.0,0.5433]
[1646324210204,0.141124,42523.0,42517.0,0.5433]
[1646324210440,0.16537374,42519.0,42517.0,0.5433]
[1646324210641,0.117639,42524.0,42521.0,0.33074747]
[1646324210844,10.3596651,42525.0,42524.0,0.7077]
[1646324211042,10.3596651,42525.0,42524.0,1.08616546]
[1646324211242,10.3596651,42525.0,42524.0,1.18616546]
[1646324211442,10.3596651,42525.0,42524.0,1.48616546]
[1646324211646,9.3601651,42525.0,42524.0,1.15096885]
[1646324211842,6.81427721,42525.0,42524.0,1.45096885]
[1646324212042,2.43905462,42525.0,42524.0,1.61439369]
[1646324212242,0.05878,42547.0,42525.0,1.10445]
[1646324212448,0.5,42540.0,42534.0,0.7077]
[1646324212643,0.05878,42547.0,42540.0,0.7077]
[1646324212841,0.001,42555.0,42545.0,0.9977]
[1646324213045,0.001,42555.0,42549.0,0.41940803]
[1646324213242,0.001,42555.0,42553.0,0.12940803]
[1646324213443,0.001,42555.0,42550.0,0.3433]
[1646324213845,0.058772,42554.0,42550.0,0.3433]
[1646324214048,0.058772,42554.0,42550.0,0.3]
[1646324214502,0.058772,42554.0,42553.0,0.02834579]
[1646324214699,0.118549,42555.0,42553.0,0.02834579]
[1646324214902,0.177319,42555.0,42554.0,0.12940803]
[1646324215203,0.172319,42555.0,42553.0,0.006]
[1646324215804,0.001,42555.0,42554.0,0.12940803]
[1646324216001,0.05977,42555.0,42554.0,0.0433]
[1646324217499,0.05977,42555.0,42554.0,1.251]
[1646324217500,0.001,42555.0,42554.0,1.251]
[1646324219246,0.001,42555.0,42554.0,1.27901673]
[1646324219847,0.001,42555.0,42554.0,0.57131673]
[1646324220554,0.001,42555.0,42554.0,0.8433]
[1646324220751,0.001,42555.0,42554.0,0.9433]
[1646324221050,0.001,42555.0,42554.0,1.70932746]
[1646324221251,0.00020288,42557.0,42554.0,1.71432746]
[1646324221452,0.00010144,42557.0,42556.0,0.7077]
[1646324221718,0.00010144,42557.0,42556.0,1.36096007]
[1646324221916,0.00010144,42557.0,42556.0,0.5433]
[1646324222118,0.17357144,42557.0,42556.0,0.14734]
[1646324222319,0.35442665,42557.0,42556.0,0.14734]
[1646324222517,0.06390756,42549.0,42538.0,0.03590144]
[1646324222718,0.117582,42547.0,42543.0,0.79]
[1646324222917,0.117582,42547.0,42546.0,0.00940115]
[1646324222918,0.058791,42547.0,42546.0,0.00940115]
[1646324223319,0.02347,42546.0,42543.0,0.006]
[1646324223524,0.16983695,42536.0,42527.0,0.29]
[1646324223722,0.199876,42539.0,42536.0,0.33967389]
[1646324223920,0.235209,42539.0,42536.0,0.33967389]
[1646324224121,0.230209,42539.0,42538.0,0.12940803]
[1646324225451,0.230209,42539.0,42538.0,0.13340803]
[1646324226652,0.230209,42539.0,42538.0,0.12940803]
[1646324226855,0.230209,42539.0,42538.0,0.14]
[1646324227154,0.39539762,42539.0,42538.0,0.14]
[1646324227351,0.54774268,42539.0,42538.0,0.14]
[1646324227552,0.53488446,42539.0,42538.0,0.14]
[1646324227953,0.55835446,42539.0,42538.0,0.14]
[1646324228158,0.85835446,42539.0,42536.0,0.33967389]
[1646324228355,0.02347,42537.0,42533.0,0.006]
[1646324228557,0.02347,42534.0,42526.0,0.29]
[1646324228756,0.02347,42529.0,42526.0,0.29]
[1646324228954,0.02347,42529.0,42528.0,0.14]
[1646324228955,0.27647469,42529.0,42528.0,0.14]
[1646324229201,0.141085,42531.0,42528.0,0.14]
[1646324229406,0.117615,42531.0,42527.0,0.1]
[1646324229602,0.117615,42531.0,42526.0,0.29]
[1646324229603,0.176422,42531.0,42526.0,0.29]
[1646324229802,0.176422,42531.0,42530.0,0.14]
[1646324230202,0.1747569,42531.0,42530.0,0.14]
[1646324230401,0.1747569,42531.0,42528.0,0.0587998]
[1646324230603,0.1747569,42531.0,42527.0,0.1]
[1646324230807,0.1747569,42531.0,42528.0,0.01558178]
[1646324231504,0.1747569,42531.0,42530.0,0.14]
[1646324233565,0.05,42541.0,42531.0,0.9577]
[1646324233760,0.735214,42548.0,42540.0,0.29]
[1646324233963,0.235214,42548.0,42541.0,0.0433]
[1646324234360,0.058782,42547.0,42545.0,0.14]
[1646324234562,0.058782,42547.0,42546.0,0.14]
[1646324234563,0.117564,42547.0,42546.0,0.14]
[1646324235163,0.235169,42552.0,42546.0,0.14]
[1646324235164,0.2834,42558.0,42546.0,0.0433]
[1646324235362,1.2362,42567.0,42550.0,0.43]
[1646324235363,0.00159229,42560.0,42550.0,0.43]
[1646324235561,0.00159229,42560.0,42553.0,0.117511]
[1646324235761,0.058756,42558.0,42554.0,0.0433]
[1646324236161,0.058756,42558.0,42557.0,0.14]
[1646324236363,0.00159229,42560.0,42557.0,0.2833]
[1646324236563,0.00159229,42560.0,42559.0,0.8477]
[1646324236808,0.00159229,42560.0,42559.0,0.2833]
[1646324237212,0.00159229,42560.0,42559.0,0.1433]
[1646324237411,0.001,42568.0,42559.0,0.23914327]
[1646324237613,0.001,42568.0,42559.0,0.1433]
[1646324237812,0.117519,42562.0,42560.0,0.1]
[1646324238011,0.117519,42562.0,42561.0,0.09584214]
[1646324238211,0.117519,42562.0,42560.0,0.1]
[1646324238411,0.117519,42564.0,42561.0,0.135]
[1646324238614,0.117519,42564.0,42563.0,0.135]
[1646324238814,0.117519,42564.0,42560.0,0.39]
[1646324239011,0.117519,42564.0,42560.0,0.448754]
[1646324239314,0.117519,42564.0,42560.0,0.103]
[1646324239514,0.117519,42564.0,42555.0,0.0433]
[1646324239710,0.20377082,42561.0,42555.0,0.0433]
[1646324239920,0.058774,42560.0,42559.0,0.135]
[1646324240552,0.13288832,42562.0,42559.0,0.135]
[1646324240755,0.13288832,42562.0,42561.0,0.00939971]
[1646324241162,0.13288832,42562.0,42549.0,0.0433]
[1646324241163,0.02347,42560.0,42549.0,0.0433]
[1646324241459,0.141037,42556.0,42550.0,0.49839993]
[1646324241653,0.141037,42556.0,42551.0,0.29]
[1646324241854,0.141037,42556.0,42551.0,0.39]
[1646324242054,0.02347,42552.0,42544.0,0.0433]
[1646324242254,0.19679397,42551.0,42548.0,0.00940314]
[1646324242456,0.31436797,42551.0,42550.0,0.00940314]
[1646324242654,0.02347,42550.0,42546.0,0.5]
[1646324243054,0.02347,42550.0,42540.0,0.03555868]
[1646324243254,0.02347,42546.0,42540.0,0.03555868]
[1646324243455,0.02347,42546.0,42541.0,0.507]
[1646324243653,0.02347,42545.0,42541.0,0.507]
[1646324243858,0.05879,42547.0,42545.0,0.07041]
[1646324244833,0.05879,42547.0,42546.0,0.12560029]
[1646324245035,0.05879,42547.0,42545.0,0.07041]
[1646324245234,0.117577,42548.0,42546.0,0.05865319]
[1646324245235,0.058787,42548.0,42546.0,0.05865319]
[1646324245437,0.05,42557.0,42546.0,0.05865319]
[1646324245438,0.05,42557.0,42551.0,0.29]
[1646324245739,0.02347,42563.0,42557.0,0.01598551]
[1646324245934,0.18261309,42563.0,42558.0,0.0433]
[1646324246138,0.35943174,42563.0,42562.0,0.12560029]
[1646324246334,0.35943174,42563.0,42558.0,0.102059]
[1646324246537,0.15914309,42563.0,42558.0,0.102059]
[1646324246734,0.058757,42563.0,42558.0,0.102059]
[1646324246936,0.058757,42563.0,42558.0,0.0433]
[1646324247637,0.058757,42563.0,42562.0,0.14]
[1646324248070,0.17611024,42563.0,42562.0,0.14]
[1646324248264,0.01427561,42563.0,42562.0,0.14]
[1646324248862,0.01417421,42563.0,42562.0,0.14]
[1646324249263,9.006e-05,42565.0,42562.0,0.43]
[1646324249464,9.006e-05,42565.0,42564.0,0.19875]
[1646324249662,9.006e-05,42565.0,42564.0,0.24205]
[1646324250264,0.059752,42568.0,42564.0,0.24205]
[1646324250465,0.059752,42568.0,42564.0,0.10205]
[1646324250466,9.002e-05,42567.0,42564.0,0.10205]
[1646324250666,0.059752,42568.0,42567.0,1.0]
[1646324250667,0.001,42568.0,42567.0,1.0]
[1646324250865,0.001,42568.0,42567.0,2.051]
[1646324251065,0.001,42568.0,42567.0,2.18085075]
[1646324251266,0.05,42576.0,42569.0,0.058732]
[1646324251466,0.058735,42579.0,42573.0,0.09333286]
[1646324251716,0.058735,42579.0,42573.0,0.43663286]
[1646324251910,0.058734,42578.0,42573.0,0.44837286]
[1646324252111,0.22990426,42578.0,42573.0,0.50419569]
[1646324252312,0.058734,42578.0,42573.0,0.19245569]
[1646324252710,0.05874,42575.0,42573.0,0.19245569]
[1646324253312,0.05874,42575.0,42573.0,0.09245569]
[1646324253612,8.791e-05,42576.0,42573.0,0.78993938]
[1646324253812,0.058727,42583.0,42573.0,0.88993938]
[1646324254012,8.791e-05,42576.0,42573.0,0.88993938]
[1646324254220,8.791e-05,42576.0,42573.0,0.18223938]
[1646324254713,8.791e-05,42576.0,42573.0,0.19397938]
[1646324254912,0.0470004,42584.0,42573.0,0.19397938]
[1646324255116,0.0470004,42584.0,42573.0,0.05504]
[1646324255117,0.18718477,42575.0,42573.0,0.05504]
[1646324255316,0.21065477,42575.0,42569.0,0.29]
[1646324255571,0.37547,42574.0,42568.0,0.008]
[1646324255771,0.37547,42574.0,42561.0,0.01174]
[1646324255772,1.0,42570.0,42552.0,0.0433]
[1646324256074,0.45,42550.0,42543.0,0.23383669]
[1646324256376,0.45,42550.0,42530.0,0.2437045]
[1646324256377,0.25,42536.0,42530.0,0.2437045]
[1646324256573,0.02347,42540.0,42521.0,0.33074747]
[1646324256574,0.15,42531.0,42521.0,0.33074747]
[1646324256776,0.21477415,42522.0,42519.0,4.59379456]
[1646324256973,0.3433,42521.0,42519.0,4.24078956]
[1646324257173,0.44961974,42521.0,42519.0,3.82893756]
[1646324257374,0.0127439,42521.0,42519.0,3.19893756]
[1646324257675,0.5,42520.0,42519.0,2.66195231]
[1646324257874,0.4989,42520.0,42517.0,0.0011]
[1646324258077,0.358833,42522.0,42518.0,0.1936813]
[1646324258272,0.058814,42520.0,42517.0,0.0011]
[1646324258673,0.235302,42520.0,42517.0,0.0011]
[1646324258875,0.235302,42520.0,42508.0,0.0011]
[1646324258876,1.0,42518.0,42508.0,0.0011]
[1646324259076,0.058838,42516.0,42508.0,0.0011]
[1646324259323,0.3,42515.0,42508.0,0.0011]
[1646324259521,0.058838,42516.0,42508.0,0.0011]
[1646324259718,0.117673,42517.0,42508.0,0.0011]
[1646324259719,0.5,42512.0,42508.0,0.0011]
[1646324259918,0.5,42512.0,42511.0,0.71710867]
[1646324260122,0.235289,42531.0,42511.0,0.71710867]
[1646324260123,0.117622,42522.0,42511.0,0.16347]
[1646324260318,0.117622,42522.0,42513.0,0.02347]
[1646324260519,0.117622,42522.0,42514.0,0.11247915]
[1646324260721,0.117622,42522.0,42515.0,0.0433]
[1646324260918,0.05881,42522.0,42516.0,0.01212929]
[1646324261119,0.117622,42522.0,42516.0,0.01212929]
[1646324261519,0.117622,42522.0,42514.0,7.057e-05]
[1646324262321,0.117622,42522.0,42512.0,0.1187797]
[1646324262524,0.05881,42522.0,42519.0,0.06063813]
[1646324262723,0.058799,42527.0,42521.0,0.71971314]
[1646324262961,0.36279086,42536.0,42527.0,0.01203038]
[1646324263158,0.117587,42538.0,42527.0,0.01203038]
[1646324263359,0.117581,42537.0,42528.0,0.0433]
[1646324263561,0.36279086,42536.0,42528.0,0.0433]
[1646324263759,0.15407734,42534.0,42528.0,0.751]
[1646324263962,0.15407734,42534.0,42532.0,0.14]
[1646324264160,0.15407734,42534.0,42533.0,0.14]
[1646324264364,0.36279086,42536.0,42533.0,0.14]
[1646324264365,0.117592,42535.0,42533.0,0.14]
[1646324264564,0.117592,42535.0,42529.0,0.1]
[1646324264761,0.117592,42535.0,42529.0,1.00467663]
[1646324264960,0.117592,42535.0,42529.0,1.00473836]
[1646324265161,0.05879,42535.0,42533.0,0.09592439]
[1646324265362,0.05879,42535.0,42529.0,1.00473836]
[1646324265363,0.05879,42535.0,42534.0,0.13922439]
[1646324265760,0.05879,42535.0,42534.0,0.0433]
[1646324265963,0.05879,42535.0,42534.0,0.07221838]
[1646324266813,0.26185994,42535.0,42534.0,0.07221838]
[1646324267013,0.26185994,42535.0,42527.0,0.01422531]
[1646324267014,0.6246508,42535.0,42527.0,0.01422531]
[1646324267212,0.6246508,42535.0,42514.0,0.025]
[1646324267213,0.058821,42530.0,42515.0,0.01645796]
[1646324267512,0.058821,42526.0,42517.0,0.17689257]
[1646324267711,0.17462001,42522.0,42515.0,0.01645796]
[1646324268011,0.17462001,42522.0,42517.0,0.19331165]
[1646324268012,0.1319184,42522.0,42517.0,0.19331165]
[1646324268611,0.05882,42521.0,42517.0,0.19331165]
[1646324268811,0.05882,42521.0,42520.0,0.14]
[1646324271261,0.068228,42521.0,42520.0,0.14]
[1646324272065,0.068228,42521.0,42520.0,0.8477]
[1646324272270,0.068228,42521.0,42520.0,0.851]
[1646324272271,0.009408,42521.0,42520.0,0.851]
[1646324272564,0.002108,42521.0,42520.0,0.87695876]
[1646324273063,0.00121464,42521.0,42520.0,0.87695876]
[1646324273263,0.058798,42528.0,42527.0,0.76590721]
[1646324273463,0.058798,42528.0,42527.0,0.94920721]
[1646324273665,0.058796,42530.0,42527.0,0.851]
[1646324273868,0.176392,42538.0,42537.0,0.21180228]
[1646324274064,0.176392,42538.0,42537.0,0.78827949]
[1646324274318,0.176392,42538.0,42537.0,0.18057949]
[1646324274820,0.117585,42536.0,42533.0,6.668e-05]
[1646324275018,0.117585,42536.0,42535.0,0.05789573]
[1646324275218,0.117585,42536.0,42535.0,0.10119573]
[1646324275818,0.69499336,42536.0,42535.0,0.13921424]
[1646324276021,0.69499336,42536.0,42531.0,6.668e-05]
[1646324276022,0.37391687,42533.0,42531.0,6.668e-05]
[1646324276221,0.37317039,42532.0,42531.0,6.668e-05]
[1646324276422,0.37317039,42532.0,42513.0,0.502]
[1646324276423,0.86347788,42531.0,42513.0,0.502]
[1646324276620,0.86347788,42531.0,42513.0,0.0683]
[1646324276621,0.058821,42527.0,42513.0,0.0683]
[1646324276818,0.37544479,42526.0,42517.0,0.19751292]
[1646324277018,0.37544479,42526.0,42516.0,0.16559895]
[1646324277019,0.01403741,42526.0,42516.0,0.16559895]
[1646324277220,0.1962308,42520.0,42514.0,0.17284106]
[1646324277620,0.3138838,42520.0,42514.0,0.17284106]
[1646324278065,0.117653,42520.0,42518.0,0.71450627]
[1646324278266,0.058828,42522.0,42519.0,0.00680627]
[1646324278463,0.058803,42521.0,42518.0,0.160903]
[1646324278662,0.058803,42521.0,42520.0,0.00680627]
[1646324279064,0.068209,42521.0,42520.0,0.00680627]
[1646324279464,0.058803,42521.0,42520.0,0.00680627]
[1646324279665,0.053803,42521.0,42520.0,0.00680627]
[1646324280267,0.053803,42521.0,42520.0,0.71450627]
[1646324280468,0.058796,42527.0,42520.0,0.78127627]
[1646324280668,0.285244,42536.0,42525.0,0.7077]
[1646324280669,0.117572,42535.0,42525.0,0.7077]
[1646324280868,0.117572,42535.0,42531.0,0.7077]
[1646324281068,0.117572,42535.0,42532.0,0.05010627]
[1646324281267,0.117572,42535.0,42532.0,0.15010627]
[1646324281467,0.31511687,42533.0,42532.0,0.15010627]
[1646324281710,0.31511687,42533.0,42532.0,0.94006227]
[1646324281915,0.31511687,42533.0,42532.0,0.15010627]
[1646324282111,0.31511687,42533.0,42532.0,0.0433]
[1646324282312,0.31511687,42533.0,42532.0,0.08899182]
[1646324283319,0.31511687,42533.0,42525.0,0.0433]
[1646324283511,0.35322458,42532.0,42525.0,0.0433]
[1646324283711,0.47083558,42532.0,42525.0,0.0433]
[1646324284010,0.117611,42532.0,42526.0,0.766499]
[1646324284215,0.117611,42532.0,42527.0,0.1867802]
[1646324284612,0.117611,42532.0,42528.0,0.05965804]
[1646324284812,0.117611,42532.0,42529.0,0.01480446]
[1646324284813,0.117595,42531.0,42529.0,0.01480446]
[1646324285013,0.117595,42531.0,42530.0,0.08383419]
[1646324285671,0.3229442,42531.0,42530.0,0.08383419]
[1646324286070,0.117595,42531.0,42530.0,0.08383419]
[1646324286270,0.117595,42531.0,42530.0,0.13229182]
[1646324286469,0.117595,42531.0,42530.0,0.13212382]
[1646324287070,0.127,42531.0,42530.0,0.13212382]
[1646324287272,0.127,42531.0,42530.0,0.29577707]
[1646324287569,0.117595,42531.0,42530.0,0.13212382]
[1646324288172,0.02737762,42531.0,42530.0,0.13212382]
[1646324288372,0.2036495,42531.0,42530.0,0.13212382]
[1646324288675,0.2036495,42531.0,42520.0,0.01358649]
[1646324288676,1.02347,42530.0,42520.0,0.01358649]
[1646324288873,1.02347,42530.0,42514.0,0.7327]
[1646324288874,0.058814,42527.0,42514.0,0.7327]
[1646324289074,0.058814,42527.0,42518.0,0.14]
[1646324289306,0.058814,42527.0,42522.0,0.14]
[1646324289508,0.058814,42527.0,42526.0,0.14]
[1646324290209,0.058814,42527.0,42522.0,0.86184959]
[1646324290413,0.058814,42527.0,42526.0,0.73953485]
[1646324290708,0.058814,42527.0,42526.0,0.03183485]
[1646324290909,0.058814,42527.0,42526.0,0.0433]
[1646324291109,0.058814,42527.0,42526.0,0.13229182]
[1646324291413,0.117613,42527.0,42526.0,0.83999182]
[1646324291609,0.058787,42532.0,42526.0,0.83999182]
[1646324291812,0.058787,42532.0,42531.0,0.17009221]
[1646324292011,0.058787,42532.0,42531.0,0.13229182]
[1646324292410,0.117574,42532.0,42531.0,0.13229182]
[1646324292611,0.117574,42532.0,42531.0,0.83999182]
[1646324293266,0.43269887,42533.0,42531.0,0.93999182]
[1646324293267,0.31511687,42533.0,42531.0,0.93999182]
[1646324293469,0.31511687,42533.0,42532.0,0.8477]
[1646324293665,0.31511687,42533.0,42532.0,0.991]
[1646324295571,0.31511687,42533.0,42532.0,0.97435434]
[1646324295766,0.31511687,42533.0,42532.0,0.93997299]
[1646324295966,0.058776,42540.0,42534.0,0.73117]
[1646324296168,0.058776,42540.0,42539.0,0.7077]
[1646324296370,0.42,42550.0,42541.0,0.7077]
[1646324296573,0.42,42550.0,42546.0,1.10956475]
[1646324296820,0.05,42553.0,42550.0,0.7077]
[1646324297015,0.42,42558.0,42553.0,0.7077]
[1646324297216,0.42,42558.0,42557.0,0.7077]
[1646324297415,0.42,42558.0,42557.0,0.83991969]
[1646324297616,0.058751,42559.0,42557.0,0.93991656]
[1646324297816,0.058751,42559.0,42558.0,0.8077]
[1646324298014,0.058751,42559.0,42558.0,0.97783385]
[1646324298416,0.058751,42559.0,42558.0,0.93991865]
[1646324298615,0.058751,42559.0,42558.0,0.93991656]
[1646324299216,0.176258,42559.0,42558.0,1.14320184]
[1646324299415,0.117507,42559.0,42558.0,1.14320184]
[1646324299618,0.117507,42559.0,42558.0,0.94491656]
[1646324300763,0.117507,42559.0,42558.0,0.93991656]
[1646324301363,0.117507,42559.0,42558.0,0.13221656]
[1646324301364,0.32775562,42559.0,42558.0,0.13221656]
[1646324301765,0.117507,42559.0,42558.0,0.13221656]
[1646324301963,0.117507,42559.0,42558.0,0.08967286]
[1646324302766,0.27318344,42559.0,42558.0,0.08967286]
[1646324303463,0.27318344,42559.0,42558.0,0.09367286]
[1646324304063,0.27318344,42559.0,42556.0,0.058758]
[1646324304064,1.0,42558.0,42556.0,0.058758]
[1646324304328,1.0,42558.0,42539.0,0.0433]
[1646324304329,0.03529649,42555.0,42539.0,0.0433]
[1646324304527,0.01394535,42552.0,42539.0,0.0433]
[1646324304724,0.058781,42549.0,42539.0,0.0433]
[1646324304923,0.058781,42549.0,42548.0,9.317e-05]
[1646324305123,0.058781,42549.0,42548.0,0.09372031]
[1646324305522,0.058781,42549.0,42548.0,0.09872031]
[1646324305724,0.058781,42549.0,42548.0,0.09862714]
[1646324306123,0.058781,42549.0,42545.0,0.05741224]
[1646324306124,0.05107055,42546.0,42545.0,0.05741224]
[1646324306325,0.05107055,42546.0,42545.0,0.40149084]
[1646324306724,0.05107055,42546.0,42545.0,0.50149084]
[1646324307025,0.05107055,42546.0,42545.0,1.20919084]
[1646324307425,0.05107055,42546.0,42545.0,1.26795984]
[1646324308265,0.05107055,42546.0,42545.0,1.0622817]
[1646324308463,0.05107055,42546.0,42545.0,0.29716946]
[1646324308661,0.05107055,42546.0,42545.0,0.202069]
[1646324308965,0.05107055,42546.0,42542.0,0.18492041]
[1646324309162,0.10985355,42546.0,42541.0,9.319e-05]
[1646324309366,0.058786,42544.0,42539.0,0.058782]
[1646324309566,0.058786,42544.0,42540.0,7.805e-05]
[1646324309965,0.058786,42544.0,42532.0,0.06184287]
[1646324310166,0.058792,42542.0,42531.0,0.025]
[1646324310368,0.058792,42542.0,42535.0,0.31228115]
[1646324310565,0.058792,42542.0,42539.0,0.14]
[1646324310767,0.058792,42542.0,42541.0,0.14]
[1646324310968,0.2498955,42542.0,42541.0,0.01725009]
[1646324311467,0.2498955,42542.0,42535.0,0.17228115]
[1646324311705,0.2498955,42542.0,42539.0,0.12274991]
[1646324311906,0.1911035,42542.0,42541.0,0.12274991]
[1646324312507,0.1911035,42542.0,42535.0,0.27228115]
[1646324312708,0.2145735,42542.0,42539.0,0.14]
[1646324312906,0.2145735,42542.0,42541.0,0.14]
[1646324313106,0.058793,42536.0,42534.0,0.13291131]
[1646324313308,0.117585,42537.0,42535.0,0.09230335]
[1646324313516,0.117585,42537.0,42536.0,0.09230335]
[1646324314608,0.235168,42538.0,42536.0,0.09230335]
[1646324314809,0.235168,42538.0,42537.0,0.09230986]
[1646324315672,0.258638,42538.0,42537.0,0.04769014]
[1646324315972,0.01020383,42536.0,42533.0,8.833e-05]
[1646324316176,0.01020383,42536.0,42527.0,0.1]
[1646324316177,0.03367383,42536.0,42527.0,0.1]
[1646324316374,0.03367383,42536.0,42526.0,0.566993]
[1646324316973,0.199879,42535.0,42526.0,0.566993]
[1646324317172,0.02347,42531.0,42526.0,0.4494]
[1646324317375,0.02347,42529.0,42525.0,0.01175]
[1646324317572,0.15403063,42528.0,42525.0,0.01175]
[1646324317771,0.15403063,42528.0,42521.0,0.19444801]
[1646324317772,0.117626,42528.0,42521.0,0.19444801]
[1646324318175,0.117626,42528.0,42525.0,0.04769014]
[1646324318372,0.06914571,42526.0,42521.0,0.18678101]
[1646324318572,0.06914571,42526.0,42521.0,0.25613763]
[1646324318776,0.058815,42526.0,42521.0,0.25613763]
[1646324318973,0.058815,42526.0,42521.0,0.18678101]
[1646324319225,0.058815,42526.0,42519.0,7.731e-05]
[1646324319226,0.01551283,42524.0,42519.0,7.731e-05]
[1646324319427,0.02411578,42523.0,42519.0,7.731e-05]
[1646324319627,0.07321912,42522.0,42513.0,0.19444801]
[1646324319827,0.117655,42520.0,42512.0,0.19444801]
[1646324320024,0.058826,42518.0,42514.0,0.19444801]
[1646324320225,0.058826,42518.0,42516.0,0.19444801]
[1646324320625,0.21676664,42517.0,42515.0,0.21120058]
[1646324321224,0.117639,42518.0,42515.0,0.21120058]
[1646324321625,0.117639,42518.0,42515.0,0.38060888]
[1646324322227,0.28237099,42518.0,42515.0,0.38060888]
[1646324322425,0.117639,42518.0,42515.0,0.21120058]
[1646324322826,0.117639,42518.0,42515.0,0.01675257]
[1646324323075,0.117639,42518.0,42515.0,0.21120058]
[1646324323478,0.18368697,42517.0,42515.0,0.21120058]
[1646324323879,0.18368697,42517.0,42515.0,0.01675257]
[1646324327914,0.18368697,42517.0,42511.0,0.19444801]
[1646324328113,0.18368697,42517.0,42510.0,0.29554801]
[1646324328413,0.01432833,42518.0,42511.0,0.4]
[1646324328713,0.07315433,42518.0,42510.0,0.19554801]
[1646324328913,0.0135989,42516.0,42510.0,0.00085516]
[1646324329115,0.17701431,42515.0,42510.0,0.00085516]
[1646324329515,0.01453883,42514.0,42510.0,0.00085516]
[1646324329715,0.01241738,42512.0,42510.0,0.00085516]
[1646324330018,0.02347,42514.0,42511.0,0.11475992]
[1646324330019,0.058835,42514.0,42511.0,0.11475992]
[1646324330217,0.01175,42522.0,42514.0,0.01463971]
[1646324330466,0.01175,42522.0,42518.0,0.06902025]
[1646324330671,0.01175,42522.0,42520.0,0.01587]
[1646324330868,0.01175,42522.0,42521.0,0.0433]
[1646324331068,0.129374,42522.0,42521.0,0.0433]
[1646324332271,0.129374,42522.0,42521.0,0.09099014]
[1646324333170,0.117624,42522.0,42517.0,0.05888195]
[1646324333371,0.117624,42522.0,42518.0,0.0433]
[1646324334225,0.058798,42528.0,42522.0,0.766499]
[1646324334428,0.058798,42528.0,42524.0,0.7077]
[1646324334623,0.058798,42528.0,42526.0,0.7077]
[1646324334824,0.7155,42536.0,42531.0,0.06264601]
[1646324335024,0.198343,42534.0,42532.0,0.0433]
[1646324335223,0.25714,42534.0,42533.0,0.0433]
[1646324335622,0.25714,42534.0,42533.0,0.09099014]
[1646324336024,0.05920461,42529.0,42525.0,0.18209753]
[1646324336222,0.11800261,42529.0,42528.0,0.16486438]
[1646324336423,0.11800261,42529.0,42528.0,0.20052334]
[1646324336823,0.11800261,42529.0,42528.0,0.08293934]
[1646324337623,0.11800261,42529.0,42528.0,0.08222182]
[1646324339070,0.11800261,42529.0,42528.0,0.24256511]
[1646324339465,0.11800261,42529.0,42528.0,0.24255906]
[1646324339666,0.05920461,42529.0,42528.0,0.24255906]
[1646324339865,0.05920461,42529.0,42528.0,1.30338266]
[1646324340065,0.00010196,42540.0,42530.0,0.73117]
[1646324340263,0.00010196,42540.0,42539.0,0.7077]
[1646324340468,0.00010196,42540.0,42539.0,0.751]
[1646324340669,0.117561,42541.0,42539.0,0.0829277]
[1646324340863,0.117561,42541.0,42539.0,0.0433]
[1646324340864,0.35207,42540.0,42539.0,0.0433]
[1646324341064,0.35217197,42540.0,42539.0,0.0433]
[1646324341262,0.35217197,42540.0,42531.0,0.04336793]
[1646324341263,0.00010197,42540.0,42531.0,0.04336793]
[1646324341465,0.16223469,42536.0,42531.0,0.04336793]
[1646324341716,0.117606,42535.0,42531.0,0.04336793]
[1646324341916,0.058804,42535.0,42534.0,0.1324984]
[1646324343216,0.2692073,42535.0,42531.0,0.0433]
[1646324343615,0.2692073,42535.0,42534.0,0.005]
[1646324344219,0.058804,42535.0,42534.0,0.1374984]
[1646324344817,0.058804,42535.0,42534.0,0.1324984]
[1646324345020,0.058804,42535.0,42534.0,0.1757984]
[1646324345222,0.009405,42535.0,42534.0,0.94690748]
[1646324345477,0.05107055,42546.0,42541.0,0.4068449]
[1646324345678,0.058777,42542.0,42541.0,0.4068449]
[1646324345879,0.058777,42542.0,42541.0,0.2331528]